[Event "Titled Tuesday Blitz April 19 Late 2022"]
[White "Keymer, Vincent"]
[Black "Siddharth, Jagadeesh"]
[WhiteFideId "12940690"]
[BlackFideId "5818320"]
[WhiteElo "2557"]
[BlackElo "2127"]
[Result "1-0"]
[Round "03"]
[TimeControl "180+1"]
[Date "2022.04.19"]
[WhiteClock "0:00:29"]
[BlackClock "0:00:29"]

1. d4 {[%clk 0:03:00]}  d5 {[%clk 0:02:58]} 2. c4 {[%clk 0:03:01]}  dxc4 {[%clk 0:02:59]} 3. Nf3 {[%clk 0:03:00]}  Nf6 {[%clk 0:02:59]} 4. e3 {[%clk 0:03:01]}  e6 {[%clk 0:02:59]} 5. Bxc4 {[%clk 0:03:01]}  c5 {[%clk 0:03:00]} 6. O-O {[%clk 0:03:01]}  a6 {[%clk 0:03:00]} 7. Be2 {[%clk 0:03:01]}  cxd4 {[%clk 0:03:00]} 8. Nxd4 {[%clk 0:03:01]}  Be7 {[%clk 0:03:00]} 9. b3 {[%clk 0:02:56]}  O-O {[%clk 0:02:57]} 10. Bb2 {[%clk 0:02:56]}  Bd7 {[%clk 0:02:52]} 11. Nd2 {[%clk 0:02:53]}  Nc6 {[%clk 0:02:52]} 12. N4f3 {[%clk 0:02:53]}  b5 {[%clk 0:02:51]} 13. Qb1 {[%clk 0:02:53]}  Qb6 {[%clk 0:02:46]} 14. Rd1 {[%clk 0:02:53]}  h6 {[%clk 0:02:43]} 15. Ne4 {[%clk 0:02:53]}  Nxe4 {[%clk 0:02:04]} 16. Qxe4 {[%clk 0:02:45]}  f5 {[%clk 0:02:01]} 17. Qf4 {[%clk 0:02:40]}  Rad8 {[%clk 0:01:52]} 18. Qg3 {[%clk 0:02:31]}  g5 {[%clk 0:01:32]} 19. h4 {[%clk 0:02:08]}  g4 {[%clk 0:01:31]} 20. Ne5 {[%clk 0:01:53]}  Nxe5 {[%clk 0:01:28]} 21. Bxe5 {[%clk 0:01:54]}  Kh7 {[%clk 0:01:20]} 22. Bc7 {[%clk 0:01:49]}  Qb7 {[%clk 0:01:12]} 23. Bxd8 {[%clk 0:01:46]}  Rxd8 {[%clk 0:01:12]} 24. Rac1 {[%clk 0:01:45]}  Rc8 {[%clk 0:01:09]} 25. Qe5 {[%clk 0:01:20]}  Rc6 {[%clk 0:01:02]} 26. Rxc6 {[%clk 0:01:09]}  Qxc6 {[%clk 0:01:02]} 27. e4 {[%clk 0:00:47]}  Bc8 {[%clk 0:00:42]} 28. exf5 {[%clk 0:00:43]}  Bb7 {[%clk 0:00:42]} 29. Bf1 {[%clk 0:00:42]}  Bxh4 {[%clk 0:00:39]} 30. fxe6 {[%clk 0:00:31]}  Qc2 {[%clk 0:00:29]} 31. Bd3+ {[%clk 0:00:29]} 1-0


[Site "https://www.chess.com"]

[Event "Titled Tuesday Blitz April 19 Late 2022"]
[White "Khanin, Semen"]
[Black "Sliwicki, Damian"]
[WhiteFideId "4111990"]
[BlackFideId "1127128"]
[WhiteElo "2442"]
[BlackElo "2084"]
[Result "0-1"]
[Round "03"]
[TimeControl "180+1"]
[Date "2022.04.19"]
[WhiteClock "0:01:00"]
[BlackClock "0:01:10"]

1. e4 {[%clk 0:03:00]}  e5 {[%clk 0:02:54]} 2. Nf3 {[%clk 0:03:00]}  Nc6 {[%clk 0:02:53]} 3. Bb5 {[%clk 0:03:01]}  a6 {[%clk 0:02:52]} 4. Ba4 {[%clk 0:03:01]}  Nf6 {[%clk 0:02:52]} 5. O-O {[%clk 0:03:02]}  b5 {[%clk 0:02:51]} 6. Bb3 {[%clk 0:03:02]}  Be7 {[%clk 0:02:52]} 7. Re1 {[%clk 0:03:01]}  O-O {[%clk 0:02:51]} 8. a4 {[%clk 0:03:01]}  Bb7 {[%clk 0:02:44]} 9. d3 {[%clk 0:02:59]}  d6 {[%clk 0:02:43]} 10. Nc3 {[%clk 0:02:58]}  b4 {[%clk 0:02:11]} 11. Ne2 {[%clk 0:02:57]}  a5 {[%clk 0:02:11]} 12. Ng3 {[%clk 0:02:57]}  Qd7 {[%clk 0:02:09]} 13. Nf5 {[%clk 0:02:46]}  Rfe8 {[%clk 0:02:09]} 14. N3h4 {[%clk 0:02:43]}  Nd4 {[%clk 0:02:06]} 15. Nxd4 {[%clk 0:02:43]}  exd4 {[%clk 0:02:07]} 16. Nf5 {[%clk 0:02:43]}  d5 {[%clk 0:02:02]} 17. Nxd4 {[%clk 0:02:01]}  dxe4 {[%clk 0:01:57]} 18. dxe4 {[%clk 0:02:02]}  Nxe4 {[%clk 0:01:51]} 19. Be3 {[%clk 0:01:47]}  Bc5 {[%clk 0:01:42]} 20. Nb5 {[%clk 0:01:26]}  Qf5 {[%clk 0:01:18]} 21. Nxc7 {[%clk 0:01:20]}  Bxe3 {[%clk 0:01:14]} 22. Rf1 {[%clk 0:01:01]}  Bxf2+ {[%clk 0:01:10]} 23. Kh1 {[%clk 0:01:00]}  Ng3+ {[%clk 0:01:10]} 0-1


[Site "https://www.chess.com"]

[Event "Titled Tuesday Blitz April 19 Late 2022"]
[White "Koc, Przemyslaw"]
[Black "Czopor, Maciej"]
[WhiteFideId "1109081"]
[BlackFideId "21805431"]
[WhiteElo "2141"]
[BlackElo "1999"]
[Result "1-0"]
[Round "03"]
[TimeControl "180+1"]
[Date "2022.04.19"]
[WhiteClock "0:00:11"]
[BlackClock "0:00:05"]

1. d4 {[%clk 0:03:00]}  b6 {[%clk 0:02:58]} 2. Nf3 {[%clk 0:02:57]}  Bb7 {[%clk 0:02:56]} 3. c3 {[%clk 0:02:57]}  Nf6 {[%clk 0:02:54]} 4. Bg5 {[%clk 0:02:57]}  h6 {[%clk 0:02:55]} 5. Bxf6 {[%clk 0:02:56]}  exf6 {[%clk 0:02:55]} 6. Nbd2 {[%clk 0:02:56]}  g6 {[%clk 0:02:53]} 7. g3 {[%clk 0:02:56]}  Bg7 {[%clk 0:02:53]} 8. Bg2 {[%clk 0:02:56]}  O-O {[%clk 0:02:54]} 9. O-O {[%clk 0:02:56]}  d6 {[%clk 0:02:54]} 10. e4 {[%clk 0:02:55]}  Nd7 {[%clk 0:02:43]} 11. Re1 {[%clk 0:02:55]}  c5 {[%clk 0:02:32]} 12. Nc4 {[%clk 0:02:52]}  Qc7 {[%clk 0:02:29]} 13. Rc1 {[%clk 0:02:46]}  b5 {[%clk 0:02:27]} 14. Ncd2 {[%clk 0:02:41]}  Nb6 {[%clk 0:02:27]} 15. Nh4 {[%clk 0:02:34]}  Rfe8 {[%clk 0:02:26]} 16. d5 {[%clk 0:02:32]}  f5 {[%clk 0:02:17]} 17. exf5 {[%clk 0:02:31]}  g5 {[%clk 0:02:17]} 18. f6 {[%clk 0:02:30]}  Rxe1+ {[%clk 0:01:53]} 19. Qxe1 {[%clk 0:02:30]}  Bf8 {[%clk 0:01:53]} 20. Nf5 {[%clk 0:02:26]}  Nxd5 {[%clk 0:01:52]} 21. Ne4 {[%clk 0:02:18]}  Re8 {[%clk 0:01:48]} 22. Qd2 {[%clk 0:02:15]}  Re5 {[%clk 0:01:39]} 23. Nd4 {[%clk 0:01:18]}  Qd7 {[%clk 0:01:24]} 24. Nc2 {[%clk 0:01:13]}  Qe6 {[%clk 0:01:14]} 25. Re1 {[%clk 0:01:08]}  Bc8 {[%clk 0:01:00]} 26. b3 {[%clk 0:00:58]}  Nxf6 {[%clk 0:00:59]} 27. Nxf6+ {[%clk 0:00:57]}  Qxf6 {[%clk 0:01:00]} 28. Rd1 {[%clk 0:00:56]}  Bg4 {[%clk 0:00:56]} 29. f3 {[%clk 0:00:54]}  Bxf3 {[%clk 0:00:52]} 30. Rf1 {[%clk 0:00:53]}  g4 {[%clk 0:00:53]} 31. Ne3 {[%clk 0:00:30]}  Qg5 {[%clk 0:00:45]} 32. Bxf3 {[%clk 0:00:30]}  Rxe3 {[%clk 0:00:38]} 33. Bg2 {[%clk 0:00:29]}  Qe5 {[%clk 0:00:33]} 34. c4 {[%clk 0:00:24]}  bxc4 {[%clk 0:00:31]} 35. bxc4 {[%clk 0:00:24]}  Qd4 {[%clk 0:00:31]} 36. Qf2 {[%clk 0:00:24]}  Re2 {[%clk 0:00:25]} 37. Qxd4 {[%clk 0:00:23]}  cxd4 {[%clk 0:00:26]} 38. Rd1 {[%clk 0:00:23]}  Bg7 {[%clk 0:00:25]} 39. a4 {[%clk 0:00:22]}  Ra2 {[%clk 0:00:21]} 40. Bc6 {[%clk 0:00:22]}  Be5 {[%clk 0:00:19]} 41. Bb5 {[%clk 0:00:21]}  Kg7 {[%clk 0:00:20]} 42. Rd3 {[%clk 0:00:20]}  a5 {[%clk 0:00:18]} 43. Rd1 {[%clk 0:00:20]}  h5 {[%clk 0:00:19]} 44. Bc6 {[%clk 0:00:19]}  f5 {[%clk 0:00:19]} 45. Bd7 {[%clk 0:00:19]}  Kg6 {[%clk 0:00:19]} 46. Rf1 {[%clk 0:00:19]}  h4 {[%clk 0:00:09]} 47. Bxf5+ {[%clk 0:00:19]}  Kg5 {[%clk 0:00:09]} 48. Bd7 {[%clk 0:00:18]}  hxg3 {[%clk 0:00:08]} 49. hxg3 {[%clk 0:00:16]}  Bxg3 {[%clk 0:00:08]} 50. Rf5+ {[%clk 0:00:16]}  Kh6 {[%clk 0:00:09]} 51. Rxa5 {[%clk 0:00:16]}  d3 {[%clk 0:00:06]} 52. Rd5 {[%clk 0:00:16]}  d2 {[%clk 0:00:06]} 53. Bxg4 {[%clk 0:00:16]}  Bf4 {[%clk 0:00:02]} 54. Kf1 {[%clk 0:00:15]}  Rxa4 {[%clk 0:00:03]} 55. Be2 {[%clk 0:00:15]}  Ra1+ {[%clk 0:00:03]} 56. Kf2 {[%clk 0:00:15]}  Re1 {[%clk 0:00:03]} 57. Rd4 {[%clk 0:00:13]}  Bg5 {[%clk 0:00:02]} 58. Rxd6+ {[%clk 0:00:12]}  Kg7 {[%clk 0:00:02]} 59. c5 {[%clk 0:00:12]}  Rh1 {[%clk 0:00:02]} 60. c6 {[%clk 0:00:11]}  Rc1 {[%clk 0:00:03]} 61. Bf3 {[%clk 0:00:10]}  Bf4 {[%clk 0:00:02]} 62. Rd7+ {[%clk 0:00:09]}  Kf6 {[%clk 0:00:02]} 63. Ke2 {[%clk 0:00:10]}  Rd1 {[%clk 0:00:02]} 64. Kxd1 {[%clk 0:00:09]}  Ke6 {[%clk 0:00:02]} 65. Rxd2 {[%clk 0:00:09]}  Bxd2 {[%clk 0:00:02]} 66. Kxd2 {[%clk 0:00:09]}  Kd6 {[%clk 0:00:03]} 67. Kd3 {[%clk 0:00:10]}  Kc7 {[%clk 0:00:04]} 68. Kc4 {[%clk 0:00:11]}  Kd6 {[%clk 0:00:05]} 1-0


[Site "https://www.chess.com"]

[Event "Titled Tuesday Blitz April 19 Late 2022"]
[White "Kollars, Dmitrij"]
[Black "Bordi, Kevin"]
[WhiteFideId "12909572"]
[BlackFideId "621862"]
[WhiteElo "2584"]
[BlackElo "2711"]
[Result "0-1"]
[Round "03"]
[TimeControl "180+1"]
[Date "2022.04.19"]
[WhiteClock "0:00:13"]
[BlackClock "0:01:55"]

1. e4 {[%clk 0:02:58]}  d5 {[%clk 0:03:00]} 2. exd5 {[%clk 0:02:56]}  Qxd5 {[%clk 0:03:01]} 3. Nc3 {[%clk 0:02:57]}  Qa5 {[%clk 0:03:01]} 4. d4 {[%clk 0:02:57]}  Nf6 {[%clk 0:03:02]} 5. Bc4 {[%clk 0:02:55]}  Bg4 {[%clk 0:03:01]} 6. Ne2 {[%clk 0:02:49]}  e6 {[%clk 0:03:01]} 7. Bd2 {[%clk 0:02:49]}  c6 {[%clk 0:03:01]} 8. h3 {[%clk 0:02:44]}  Bh5 {[%clk 0:03:01]} 9. g4 {[%clk 0:02:34]}  Bg6 {[%clk 0:03:01]} 10. Nf4 {[%clk 0:02:35]}  Nbd7 {[%clk 0:02:52]} 11. h4 {[%clk 0:02:28]}  Qb6 {[%clk 0:02:47]} 12. h5 {[%clk 0:02:07]}  Be4 {[%clk 0:02:45]} 13. O-O {[%clk 0:01:52]}  Qxd4 {[%clk 0:02:34]} 14. Qe2 {[%clk 0:01:41]}  Ne5 {[%clk 0:02:28]} 15. Nxe4 {[%clk 0:01:19]}  Nxe4 {[%clk 0:02:29]} 16. Bd3 {[%clk 0:00:45]}  Nxd2 {[%clk 0:02:27]} 17. Nxe6 {[%clk 0:00:20]}  Ndf3+ {[%clk 0:01:55]} 18. Kh1 {[%clk 0:00:14]}  Qxg4 {[%clk 0:01:55]} 19. Nc7+ {[%clk 0:00:13]}  Kd8 {[%clk 0:01:55]} 0-1


[Site "https://www.chess.com"]

[Event "Titled Tuesday Blitz April 19 Late 2022"]
[White "Kovanova, Baira"]
[Black "Urazayev, Arystanbek"]
[WhiteFideId "4164083"]
[BlackFideId "13709810"]
[WhiteElo "2190"]
[BlackElo "2422"]
[Result "1-0"]
[Round "03"]
[TimeControl "180+1"]
[Date "2022.04.19"]
[WhiteClock "0:00:16"]
[BlackClock "0:00:01"]

1. e4 {[%clk 0:02:58]}  c5 {[%clk 0:03:00]} 2. Nc3 {[%clk 0:02:57]}  e6 {[%clk 0:03:00]} 3. Nge2 {[%clk 0:02:54]}  Nc6 {[%clk 0:03:00]} 4. d4 {[%clk 0:02:54]}  cxd4 {[%clk 0:03:00]} 5. Nxd4 {[%clk 0:02:54]}  Nf6 {[%clk 0:03:01]} 6. Nxc6 {[%clk 0:02:48]}  bxc6 {[%clk 0:03:01]} 7. Bd3 {[%clk 0:02:48]}  d5 {[%clk 0:03:01]} 8. O-O {[%clk 0:02:47]}  a5 {[%clk 0:03:01]} 9. Qe2 {[%clk 0:02:46]}  Be7 {[%clk 0:03:01]} 10. e5 {[%clk 0:02:33]}  Nd7 {[%clk 0:03:01]} 11. Qg4 {[%clk 0:02:28]}  Nxe5 {[%clk 0:02:56]} 12. Qxg7 {[%clk 0:02:27]}  Bf6 {[%clk 0:02:57]} 13. Qg3 {[%clk 0:02:27]}  Nxd3 {[%clk 0:02:56]} 14. Qxd3 {[%clk 0:02:27]}  Ba6 {[%clk 0:02:56]} 15. Qf3 {[%clk 0:02:19]}  Bxf1 {[%clk 0:02:55]} 16. Kxf1 {[%clk 0:02:20]}  Ke7 {[%clk 0:02:48]} 17. Kg1 {[%clk 0:02:19]}  Rb8 {[%clk 0:02:44]} 18. b3 {[%clk 0:02:14]}  Kd7 {[%clk 0:02:20]} 19. Rb1 {[%clk 0:02:10]}  Rg8 {[%clk 0:02:12]} 20. Na4 {[%clk 0:02:09]}  Rg6 {[%clk 0:02:00]} 21. Bf4 {[%clk 0:02:01]}  e5 {[%clk 0:01:50]} 22. Bg3 {[%clk 0:02:01]}  Qe8 {[%clk 0:01:38]} 23. Rd1 {[%clk 0:01:54]}  Ke7 {[%clk 0:01:34]} 24. h4 {[%clk 0:01:24]}  Bg7 {[%clk 0:01:16]} 25. h5 {[%clk 0:01:02]}  Re6 {[%clk 0:01:13]} 26. Nc5 {[%clk 0:01:01]}  Rh6 {[%clk 0:00:54]} 27. Re1 {[%clk 0:01:01]}  Kf8 {[%clk 0:00:32]} 28. Bxe5 {[%clk 0:01:00]}  Kg8 {[%clk 0:00:32]} 29. Bc3 {[%clk 0:00:41]}  Qc8 {[%clk 0:00:14]} 30. Qg3 {[%clk 0:00:36]}  f6 {[%clk 0:00:14]} 31. Re7 {[%clk 0:00:33]}  Qf8 {[%clk 0:00:15]} 32. Rxg7+ {[%clk 0:00:28]}  Kh8 {[%clk 0:00:09]} 33. Ne6 {[%clk 0:00:23]}  Qe8 {[%clk 0:00:03]} 34. Re7 {[%clk 0:00:21]}  Qg8 {[%clk 0:00:01]} 35. Qf4 {[%clk 0:00:16]} 1-0


[Site "https://www.chess.com"]

[Event "Titled Tuesday Blitz April 19 Late 2022"]
[White "Kozak, Adam"]
[Black "Ahmadzada, Ahmad"]
[WhiteFideId "753246"]
[BlackFideId "13413007"]
[WhiteElo "2459"]
[BlackElo "2228"]
[Result "1-0"]
[Round "03"]
[TimeControl "180+1"]
[Date "2022.04.19"]
[WhiteClock "0:00:06"]
[BlackClock "0:00:03"]

1. Nf3 {[%clk 0:02:56]}  Nf6 {[%clk 0:02:59]} 2. b3 {[%clk 0:02:55]}  g6 {[%clk 0:02:57]} 3. Bb2 {[%clk 0:02:55]}  Bg7 {[%clk 0:02:58]} 4. g3 {[%clk 0:02:56]}  b6 {[%clk 0:02:58]} 5. Bg2 {[%clk 0:02:56]}  Bb7 {[%clk 0:02:59]} 6. O-O {[%clk 0:02:57]}  O-O {[%clk 0:02:59]} 7. c4 {[%clk 0:02:58]}  e6 {[%clk 0:02:59]} 8. Nc3 {[%clk 0:02:56]}  d6 {[%clk 0:02:57]} 9. d4 {[%clk 0:02:56]}  Ne4 {[%clk 0:02:57]} 10. Qc2 {[%clk 0:02:54]}  Nxc3 {[%clk 0:02:56]} 11. Bxc3 {[%clk 0:02:55]}  Nd7 {[%clk 0:02:56]} 12. e4 {[%clk 0:02:55]}  Qe7 {[%clk 0:02:56]} 13. b4 {[%clk 0:02:51]}  c5 {[%clk 0:02:52]} 14. bxc5 {[%clk 0:02:51]}  bxc5 {[%clk 0:02:42]} 15. Rab1 {[%clk 0:02:36]}  cxd4 {[%clk 0:02:23]} 16. Nxd4 {[%clk 0:02:37]}  Nc5 {[%clk 0:02:20]} 17. Rfe1 {[%clk 0:02:19]}  Rac8 {[%clk 0:02:15]} 18. h4 {[%clk 0:01:59]}  h5 {[%clk 0:02:04]} 19. Nb5 {[%clk 0:01:53]}  Bxc3 {[%clk 0:01:54]} 20. Qxc3 {[%clk 0:01:48]}  Ba6 {[%clk 0:01:43]} 21. Qa3 {[%clk 0:01:44]}  Bxb5 {[%clk 0:01:35]} 22. cxb5 {[%clk 0:01:45]}  Rc7 {[%clk 0:01:35]} 23. Qa5 {[%clk 0:01:39]}  Rfc8 {[%clk 0:01:34]} 24. Red1 {[%clk 0:01:36]}  Qf6 {[%clk 0:01:29]} 25. Qb4 {[%clk 0:01:24]}  Nb7 {[%clk 0:01:18]} 26. Qd4 {[%clk 0:00:57]}  Qxd4 {[%clk 0:00:57]} 27. Rxd4 {[%clk 0:00:58]}  Kf8 {[%clk 0:00:57]} 28. Ra4 {[%clk 0:00:54]}  Nc5 {[%clk 0:00:55]} 29. Ra3 {[%clk 0:00:53]}  Ke7 {[%clk 0:00:54]} 30. Rb4 {[%clk 0:00:53]}  Rb8 {[%clk 0:00:49]} 31. Bf1 {[%clk 0:00:52]}  Rcb7 {[%clk 0:00:47]} 32. Rd4 {[%clk 0:00:49]}  Rc7 {[%clk 0:00:39]} 33. Kg2 {[%clk 0:00:48]}  Rb6 {[%clk 0:00:30]} 34. Ra5 {[%clk 0:00:40]}  Rb8 {[%clk 0:00:25]} 35. Rc4 {[%clk 0:00:40]}  Rcb7 {[%clk 0:00:23]} 36. Rd4 {[%clk 0:00:37]}  Rc7 {[%clk 0:00:23]} 37. Kf3 {[%clk 0:00:34]}  e5 {[%clk 0:00:20]} 38. Rc4 {[%clk 0:00:32]}  Rbc8 {[%clk 0:00:16]} 39. Kg2 {[%clk 0:00:27]}  Rb8 {[%clk 0:00:13]} 40. Rc3 {[%clk 0:00:26]}  Rbb7 {[%clk 0:00:12]} 41. Kf3 {[%clk 0:00:20]}  Ne6 {[%clk 0:00:11]} 42. Rca3 {[%clk 0:00:18]}  Nd4+ {[%clk 0:00:11]} 43. Kg2 {[%clk 0:00:18]}  Ke6 {[%clk 0:00:07]} 44. R3a4 {[%clk 0:00:17]}  Ke7 {[%clk 0:00:07]} 45. Bc4 {[%clk 0:00:17]}  Kf6 {[%clk 0:00:03]} 46. Bd5 {[%clk 0:00:16]}  Rxb5 {[%clk 0:00:03]} 47. Rxa7 {[%clk 0:00:17]}  Rbc5 {[%clk 0:00:01]} 48. Rxc7 {[%clk 0:00:16]}  Rxc7 {[%clk 0:00:02]} 49. Ra8 {[%clk 0:00:15]}  Ke7 {[%clk 0:00:02]} 50. a4 {[%clk 0:00:15]}  Nc6 {[%clk 0:00:02]} 51. a5 {[%clk 0:00:14]}  Nb4 {[%clk 0:00:02]} 52. Bb3 {[%clk 0:00:09]}  Rc3 {[%clk 0:00:02]} 53. Ba4 {[%clk 0:00:09]}  Ra3 {[%clk 0:00:02]} 54. Bb5 {[%clk 0:00:08]}  Nc2 {[%clk 0:00:02]} 55. Bc6 {[%clk 0:00:07]}  Nd4 {[%clk 0:00:02]} 56. Bb7 {[%clk 0:00:07]}  Nb5 {[%clk 0:00:01]} 57. a6 {[%clk 0:00:06]}  Nc7 {[%clk 0:00:02]} 58. Ra7 {[%clk 0:00:06]}  Nb5 {[%clk 0:00:02]} 59. Ra8 {[%clk 0:00:06]}  Nc7 {[%clk 0:00:03]} 60. Rc8 {[%clk 0:00:06]}  Nxa6 {[%clk 0:00:03]} 61. Ra8 {[%clk 0:00:06]}  Nc5 {[%clk 0:00:03]} 62. Rxa3 {[%clk 0:00:06]} 1-0


[Site "https://www.chess.com"]

[Event "Titled Tuesday Blitz April 19 Late 2022"]
[White "Koziorowicz, Michal"]
[Black "Sarkar, Justin"]
[WhiteFideId "21809194"]
[BlackFideId "2010011"]
[WhiteElo "2235"]
[BlackElo "2038"]
[Result "1-0"]
[Round "03"]
[TimeControl "180+1"]
[Date "2022.04.19"]
[WhiteClock "0:00:55"]
[BlackClock "0:00:04"]

1. Nc3 {[%clk 0:03:00]}  Nf6 {[%clk 0:02:46]} 2. e4 {[%clk 0:03:00]}  d5 {[%clk 0:02:46]} 3. exd5 {[%clk 0:02:59]}  Nxd5 {[%clk 0:02:44]} 4. Bc4 {[%clk 0:03:00]}  Nxc3 {[%clk 0:02:36]} 5. Qf3 {[%clk 0:03:00]}  e6 {[%clk 0:02:35]} 6. Qxc3 {[%clk 0:03:00]}  Qf6 {[%clk 0:02:33]} 7. Ne2 {[%clk 0:02:54]}  Nd7 {[%clk 0:02:20]} 8. d4 {[%clk 0:02:50]}  c5 {[%clk 0:02:07]} 9. Be3 {[%clk 0:02:48]}  cxd4 {[%clk 0:01:57]} 10. Bxd4 {[%clk 0:02:47]}  e5 {[%clk 0:01:56]} 11. Be3 {[%clk 0:02:47]}  Be7 {[%clk 0:01:53]} 12. O-O {[%clk 0:02:47]}  O-O {[%clk 0:01:52]} 13. Rad1 {[%clk 0:02:43]}  Nb6 {[%clk 0:01:48]} 14. Bb3 {[%clk 0:02:41]}  Bg4 {[%clk 0:01:45]} 15. f3 {[%clk 0:02:36]}  Be6 {[%clk 0:01:35]} 16. Ng3 {[%clk 0:02:34]}  Rfc8 {[%clk 0:01:21]} 17. Ne4 {[%clk 0:02:33]}  Qf5 {[%clk 0:01:16]} 18. Qa5 {[%clk 0:02:29]}  Nc4 {[%clk 0:01:09]} 19. Bxc4 {[%clk 0:02:26]}  Bxc4 {[%clk 0:01:08]} 20. Rfe1 {[%clk 0:02:26]}  b6 {[%clk 0:01:04]} 21. Qa4 {[%clk 0:02:19]}  Qe6 {[%clk 0:00:57]} 22. b3 {[%clk 0:02:18]}  Bd5 {[%clk 0:00:47]} 23. Re2 {[%clk 0:02:09]}  h6 {[%clk 0:00:34]} 24. Bf2 {[%clk 0:02:05]}  f5 {[%clk 0:00:30]} 25. c4 {[%clk 0:02:02]}  Bc6 {[%clk 0:00:26]} 26. Qa6 {[%clk 0:01:26]}  fxe4 {[%clk 0:00:26]} 27. fxe4 {[%clk 0:01:27]}  Qg4 {[%clk 0:00:25]} 28. c5 {[%clk 0:01:25]}  Bxe4 {[%clk 0:00:20]} 29. Qc4+ {[%clk 0:01:22]}  Kh7 {[%clk 0:00:12]} 30. Qxe4+ {[%clk 0:01:23]}  Qxe4 {[%clk 0:00:12]} 31. Rxe4 {[%clk 0:01:24]}  Bxc5 {[%clk 0:00:12]} 32. Bxc5 {[%clk 0:01:18]}  Rxc5 {[%clk 0:00:11]} 33. h3 {[%clk 0:01:18]}  Rac8 {[%clk 0:00:11]} 34. Rd7 {[%clk 0:01:16]}  R8c7 {[%clk 0:00:10]} 35. Rd8 {[%clk 0:01:15]}  Rc2 {[%clk 0:00:08]} 36. a4 {[%clk 0:01:02]}  Rb2 {[%clk 0:00:09]} 37. Rd3 {[%clk 0:00:57]}  Rcc2 {[%clk 0:00:06]} 38. Rg3 {[%clk 0:00:57]}  Re2 {[%clk 0:00:06]} 39. Reg4 {[%clk 0:00:57]}  g5 {[%clk 0:00:05]} 40. h4 {[%clk 0:00:56]}  e4 {[%clk 0:00:04]} 41. hxg5 {[%clk 0:00:56]}  hxg5 {[%clk 0:00:04]} 42. Rxg5 {[%clk 0:00:55]}  e3 {[%clk 0:00:04]} 43. Rh5# {[%clk 0:00:55]} 1-0


[Site "https://www.chess.com"]

[Event "Titled Tuesday Blitz April 19 Late 2022"]
[White "Ladan, Nicholas"]
[Black "Bachmann, Axel"]
[WhiteFideId "30918855"]
[BlackFideId "3700488"]
[WhiteElo "2167"]
[BlackElo "2587"]
[Result "1/2-1/2"]
[Round "03"]
[TimeControl "180+1"]
[Date "2022.04.19"]
[WhiteClock "0:00:31"]
[BlackClock "0:00:01"]

1. d4 {[%clk 0:02:58]}  Nf6 {[%clk 0:02:54]} 2. c4 {[%clk 0:02:57]}  g6 {[%clk 0:02:54]} 3. Nf3 {[%clk 0:02:57]}  Bg7 {[%clk 0:02:54]} 4. g3 {[%clk 0:02:56]}  c5 {[%clk 0:02:53]} 5. d5 {[%clk 0:02:55]}  b5 {[%clk 0:02:53]} 6. Qc2 {[%clk 0:02:53]}  bxc4 {[%clk 0:02:50]} 7. e4 {[%clk 0:02:51]}  d6 {[%clk 0:02:48]} 8. Bxc4 {[%clk 0:02:49]}  O-O {[%clk 0:02:48]} 9. O-O {[%clk 0:02:48]}  Bh3 {[%clk 0:02:47]} 10. Re1 {[%clk 0:02:48]}  Nbd7 {[%clk 0:02:47]} 11. Nc3 {[%clk 0:02:46]}  h6 {[%clk 0:02:43]} 12. a4 {[%clk 0:02:44]}  Ng4 {[%clk 0:02:42]} 13. a5 {[%clk 0:02:42]}  Qc8 {[%clk 0:02:28]} 14. Be2 {[%clk 0:02:22]}  f5 {[%clk 0:02:05]} 15. exf5 {[%clk 0:02:02]}  Nge5 {[%clk 0:01:54]} 16. Nh4 {[%clk 0:01:59]}  g5 {[%clk 0:01:48]} 17. Ng6 {[%clk 0:01:51]}  Rf7 {[%clk 0:01:30]} 18. Bh5 {[%clk 0:01:25]}  g4 {[%clk 0:01:09]} 19. Nxe5 {[%clk 0:01:23]}  Nxe5 {[%clk 0:01:05]} 20. Rxe5 {[%clk 0:01:18]}  Bxe5 {[%clk 0:01:03]} 21. Bxf7+ {[%clk 0:01:18]}  Kxf7 {[%clk 0:01:03]} 22. Bxh6 {[%clk 0:01:11]}  Rb8 {[%clk 0:00:51]} 23. Bc1 {[%clk 0:00:55]}  Rb4 {[%clk 0:00:39]} 24. Ra4 {[%clk 0:00:49]}  Qb7 {[%clk 0:00:27]} 25. Rxb4 {[%clk 0:00:39]}  cxb4 {[%clk 0:00:28]} 26. Ne4 {[%clk 0:00:37]}  Qxd5 {[%clk 0:00:26]} 27. Ng5+ {[%clk 0:00:33]}  Kf6 {[%clk 0:00:11]} 28. Ne4+ {[%clk 0:00:32]}  Kf7 {[%clk 0:00:07]} 29. Ng5+ {[%clk 0:00:31]}  Kf6 {[%clk 0:00:07]} 30. Ne4+ {[%clk 0:00:31]}  Kf7 {[%clk 0:00:01]} 1/2-1/2


[Site "https://www.chess.com"]

[Event "Titled Tuesday Blitz April 19 Late 2022"]
[White "Le Goff, Ronan"]
[Black "Kamsky, Gata"]
[WhiteFideId "612073"]
[BlackFideId "2000024"]
[WhiteElo "2276"]
[BlackElo "2645"]
[Result "0-1"]
[Round "03"]
[TimeControl "180+1"]
[Date "2022.04.19"]
[WhiteClock "0:01:45"]
[BlackClock "0:02:22"]

1. d4 {[%clk 0:02:59]}  Nf6 {[%clk 0:02:57]} 2. c4 {[%clk 0:02:53]}  e6 {[%clk 0:02:56]} 3. Nf3 {[%clk 0:02:51]}  b6 {[%clk 0:02:55]} 4. e3 {[%clk 0:02:51]}  Bb7 {[%clk 0:02:54]} 5. Bd3 {[%clk 0:02:51]}  g6 {[%clk 0:02:50]} 6. O-O {[%clk 0:02:48]}  Bg7 {[%clk 0:02:51]} 7. Nc3 {[%clk 0:02:48]}  O-O {[%clk 0:02:48]} 8. e4 {[%clk 0:02:29]}  d6 {[%clk 0:02:46]} 9. h3 {[%clk 0:02:22]}  Nbd7 {[%clk 0:02:45]} 10. Bg5 {[%clk 0:02:22]}  h6 {[%clk 0:02:45]} 11. Be3 {[%clk 0:02:21]}  e5 {[%clk 0:02:40]} 12. d5 {[%clk 0:02:20]}  Nc5 {[%clk 0:02:39]} 13. Bc2 {[%clk 0:02:18]}  a5 {[%clk 0:02:39]} 14. b3 {[%clk 0:02:16]}  Nh5 {[%clk 0:02:36]} 15. a3 {[%clk 0:02:10]}  Nf4 {[%clk 0:02:34]} 16. b4 {[%clk 0:02:03]}  Nd7 {[%clk 0:02:33]} 17. Ne2 {[%clk 0:01:58]}  axb4 {[%clk 0:02:28]} 18. Nxf4 {[%clk 0:01:50]}  exf4 {[%clk 0:02:26]} 19. Bxf4 {[%clk 0:01:45]}  Qf6 {[%clk 0:02:22]} 0-1


[Site "https://www.chess.com"]